bitfinex-derivatives/quotes_SOLF0:USTF0_20250409
["timestamp","ask_amount","ask_price","bid_price","bid_amount"]
[1744220588300,39.63867756,116.68,116.65,0.06391871]
[1744220588500,39.63867756,116.68,116.57,39.58021031]
[1744220588914,39.58021031,116.66,116.53,39.58021031]
[1744220589107,1.57611691,116.67,116.51,75.82409588]
[1744220589108,39.58021031,116.64,116.51,75.82409588]
[1744220589311,39.58021031,116.6,116.51,75.82409588]
[1744220589512,39.58021031,116.58,116.51,75.82409588]
[1744220589710,0.05910913,116.59,116.51,75.82409588]
[1744220589913,0.05910913,116.59,116.46,39.58021031]
[1744220589914,0.05910913,116.59,116.52,39.58021031]
[1744220590103,4.1785,116.65,116.6,8.5821]
[1744220590303,4.1785,116.65,116.58,39.58021031]
[1744220590506,4.1785,116.65,116.56,39.58021031]
[1744220590709,1.63784455,116.64,116.54,39.58021031]
[1744220590909,39.64157745,116.64,116.54,39.58021031]
[1744220591106,39.58021031,116.64,116.54,39.58021031]
[1744220591309,0.06486072,116.6,116.49,304.0]
[1744220591514,0.06486072,116.6,116.51,39.58021031]
[1744220591710,39.58021031,116.6,116.49,39.58021031]
[1744220591916,39.58021031,116.58,116.47,39.58021031]
[1744220592115,0.06126239,116.57,116.49,39.58021031]
[1744220592317,0.06126239,116.57,116.44,379.82409588]
[1744220592627,39.58021031,116.54,116.44,75.82409588]
[1744220592812,39.64211283,116.52,116.44,75.82409588]
[1744220593015,0.06190252,116.52,116.42,115.40430619]
[1744220593209,4.521,116.55,116.51,8.5887]
[1744220593416,4.521,116.55,116.5,39.58021031]
[1744220593615,39.58021031,116.6,116.48,39.58021031]
[1744220593912,4.521,116.62,116.53,39.58021031]
[1744220594114,39.58021031,116.6,116.49,39.58021031]
[1744220594330,1.57723632,116.61,116.56,0.05673101]
[1744220594527,4.521,116.62,116.56,0.05673101]
[1744220594728,39.58021031,116.68,116.58,8.5835]
[1744220594932,39.58021031,116.68,116.57,39.58021031]
[1744220595241,1.576562,116.67,116.57,39.58021031]
[1744220595440,0.06427248,116.64,116.57,39.58021031]
[1744220595745,0.06427248,116.64,116.61,0.0588681]
[1744220596043,52.67001031,116.69,116.61,0.0588681]
[1744220596242,0.05665956,116.64,116.61,0.0588681]
[1744220596446,0.05665956,116.64,116.63,8.5798]
[1744220596749,39.58021031,116.73,116.62,39.58021031]
[1744220597048,13.2003,116.75,116.66,39.58021031]
[1744220597844,8.6945,116.75,116.67,101.58021031]
[1744220598039,0.05813755,116.72,116.71,8.574]
[1744220598245,53.18921031,116.81,116.69,39.64528353]
[1744220598545,1.5748935,116.8,116.69,39.58021031]
[1744220598744,39.58021031,116.79,116.67,101.58021031]
[1744220598933,39.58021031,116.77,116.67,62.0]
[1744220599135,1.5748935,116.78,116.67,101.58021031]
[1744220599336,53.18921031,116.81,116.67,101.58021031]
[1744220599534,0.05762594,116.73,116.71,0.0625294]
[1744220599945,1.57484082,116.8,116.69,39.58021031]
[1744220600139,1.57484082,116.8,116.71,39.58021031]
[1744220600343,0.06363542,116.73,116.71,39.64487471]
[1744220600750,1.5747648,116.8,116.71,39.58021031]
[1744220600945,0.06171711,116.73,116.71,0.05780745]
[1744220601142,0.06171711,116.73,116.72,8.5733]
[1744220601338,39.58021031,116.77,116.67,62.0]
[1744220601553,39.58021031,116.75,116.71,0.05618936]
[1744220601752,1.63474624,116.74,116.64,39.58021031]
[1744220601949,0.05923421,116.74,116.66,39.58021031]
[1744220602151,53.18921031,116.81,116.64,555.6]
[1744220602343,1.57459504,116.8,116.7,39.58021031]
[1744220602540,13.609,116.81,116.71,39.58021031]
[1744220602752,13.609,116.81,116.74,8.5718]
[1744220603055,0.06396862,116.77,116.75,0.06457705]
[1744220603951,39.58021031,116.89,116.76,39.58021031]
[1744220604151,1.57381579,116.88,116.78,39.58021031]
[1744220604356,555.6,116.91,116.7,343.58021031]
[1744220604357,41.1540261,116.87,116.76,39.58021031]
[1744220604550,1.57381579,116.86,116.79,62.0]
[1744220604743,1.57381579,116.86,116.79,70.5677]
[1744220604964,1.57381579,116.86,116.79,62.0]
[1744220605142,0.05609528,116.84,116.81,0.06126648]
[1744220605547,0.05609528,116.84,116.77,39.58021031]
[1744220605856,0.05609528,116.84,116.81,0.06003688]
[1744220606153,1.57367716,116.88,116.77,39.58021031]
[1744220606350,39.58021031,116.85,116.75,39.58021031]
[1744220606555,10.43382118,116.84,116.74,39.58021031]
[1744220606750,8.8051,116.84,116.76,39.58021031]
[1744220607350,555.6,116.91,116.85,8.5637]
[1744220607542,555.6,116.91,116.76,343.58021031]
[1744220607543,555.6,116.91,116.82,39.58021031]
[1744220607745,0.06245472,116.89,116.87,0.06108199]
[1744220607940,0.06245472,116.89,116.73,859.38]
[1744220607941,39.58021031,116.88,116.77,39.58021031]
[1744220608152,1.57346524,116.87,116.72,39.58021031]
[1744220608448,39.58021031,116.79,116.67,39.58021031]
[1744220608653,594.96021031,116.81,116.69,39.58021031]
[1744220609055,39.58021031,116.88,116.71,39.58021031]
[1744220609056,10.417169,116.8,116.71,39.58021031]
[1744220609244,39.58021031,116.87,116.75,39.58021031]
[1744220609439,1.57435408,116.86,116.75,39.58021031]
[1744220609640,1.57435408,116.86,116.77,39.58021031]
[1744220609956,48.42291031,116.87,116.77,39.58021031]
[1744220610142,1.57379862,116.86,116.77,48.14931031]
[1744220610339,48.42291031,116.87,116.77,39.58021031]
[1744220610543,0.05612868,116.83,116.81,0.06128149]
[1744220611243,48.19633899,116.83,116.65,555.28]
[1744220611445,1.57406142,116.82,116.68,39.58021031]
[1744220611657,39.58021031,116.8,116.68,39.58021031]
[1744220612050,39.58021031,116.8,116.66,1.71438367]
[1744220612251,1.57478727,116.79,116.68,39.58021031]
[1744220612450,0.05835586,116.74,116.72,0.06355295]
[1744220612852,39.58021031,116.8,116.68,39.58021031]
[1744220613254,0.06541031,116.74,116.72,0.06129097]
[1744220613762,39.58021031,116.8,116.68,39.58021031]
[1744220614053,0.05479527,116.74,116.72,0.06155898]
[1744220614262,4.5762,116.81,116.72,0.06155898]
[1744220614652,8.8427,116.87,116.76,39.58021031]
[1744220614850,3.28551398,116.86,116.8,39.58021031]
[1744220615052,1.71144959,116.86,116.82,39.58021031]
[1744220615552,0.06025531,116.85,116.83,0.05427181]
[1744220615955,1.71144959,116.86,116.77,62.0]
[1744220616156,0.0553473,116.85,116.83,0.05548298]
[1744220616459,0.0553473,116.85,116.77,62.0]
[1744220616649,0.0553473,116.85,116.83,0.06502809]
[1744220616852,44.12261031,116.86,116.77,62.0]
[1744220617050,39.58021031,116.82,116.72,39.58021031]
[1744220617363,39.58021031,116.82,116.7,39.58021031]
[1744220617654,4.298,116.81,116.7,39.58021031]
[1744220617863,4.298,116.81,116.73,39.58021031]
[1744220618061,39.58021031,116.8,116.7,39.58021031]
[1744220618249,0.06305529,116.77,116.74,0.05480975]
[1744220618562,39.58021031,116.76,116.65,39.58021031]
[1744220618762,39.58021031,116.78,116.66,1.71438367]
[1744220618950,44.20661031,116.78,116.68,39.58021031]
[1744220619149,1.57509409,116.77,116.68,39.58021031]
[1744220619345,4.6264,116.78,116.68,39.58021031]
[1744220619557,4.6264,116.78,116.66,1.71438367]
[1744220619750,0.06443303,116.74,116.67,39.58021031]
[1744220619956,0.06443303,116.74,116.68,62.0]
[1744220620154,0.06443303,116.74,116.69,39.58021031]
[1744220620469,0.06443303,116.74,116.67,48.15681031]
[1744220620659,0.06443303,116.74,116.67,39.58021031]
[1744220620859,39.58021031,116.77,116.67,39.58021031]
[1744220621056,0.0603084,116.72,116.67,39.58021031]
[1744220621661,0.0603084,116.72,116.66,1.71438367]
[1744220621860,39.58021031,116.71,116.66,1.71438367]
[1744220622166,39.58021031,116.69,116.57,39.58021031]
[1744220622463,39.58021031,116.67,116.57,39.58021031]
[1744220622762,0.05917374,116.64,116.59,39.58021031]
[1744220622963,39.58021031,116.77,116.63,39.58021031]
[1744220623161,41.15556581,116.75,116.59,343.58021031]
[1744220623356,39.58021031,116.73,116.6,62.0]
[1744220623562,39.58021031,116.71,116.59,39.58021031]
[1744220623766,39.58021031,116.67,116.57,39.58021031]
[1744220624061,1.57664138,116.66,116.57,39.58021031]
[1744220624262,0.06081088,116.63,116.61,0.05917374]
[1744220625160,0.06081088,116.63,116.55,8.5852]
[1744220625358,0.06081088,116.63,116.55,39.58021031]
[1744220625559,4.3016,116.66,116.55,39.58021031]
[1744220625760,4.3016,116.66,116.57,39.58021031]
[1744220625955,4.3016,116.66,116.52,304.0]
[1744220626166,4.3016,116.66,116.61,8.5808]
[1744220626355,4.3016,116.66,116.6,39.58021031]
[1744220626557,4.6049,116.68,116.6,39.58021031]
[1744220626763,0.0563186,116.64,116.6,39.58021031]
[1744220626953,0.0563186,116.64,116.57,39.58021031]
[1744220627365,39.58021031,116.66,116.55,39.58021031]
[1744220627565,0.06342159,116.62,116.57,39.58021031]
[1744220627762,0.06342159,116.62,116.59,39.58021031]
[1744220627972,0.06342159,116.62,116.61,48.16161031]
[1744220628275,4.3551,116.69,116.61,39.58021031]
[1744220628566,43.93531031,116.69,116.57,39.58021031]
[1744220628760,4.3551,116.69,116.59,39.58021031]
[1744220628959,4.3551,116.69,116.61,39.58021031]
[1744220629160,43.93531031,116.69,116.57,39.58021031]
[1744220629467,0.0601994,116.66,116.64,0.06342159]
[1744220630172,39.58021031,116.65,116.52,39.58021031]
[1744220630361,0.0601994,116.66,116.54,39.58021031]
[1744220630556,39.58021031,116.67,116.56,39.58021031]
[1744220630766,1.57668534,116.66,116.56,39.58021031]
[1744220630967,1.57668534,116.66,116.62,39.58021031]
[1744220631167,1.57668534,116.66,116.58,39.58021031]
[1744220631168,1.57648183,116.68,116.61,39.58021031]
[1744220631368,4.3551,116.69,116.61,39.58021031]
[1744220631670,1.57639379,116.68,116.59,39.58021031]
[1744220631870,39.58021031,116.67,116.56,39.58021031]
[1744220632066,4.3551,116.69,116.56,39.58021031]
[1744220632268,39.58021031,116.67,116.52,39.58021031]
[1744220632568,0.05897619,116.64,116.61,0.05833693]
[1744220632768,1.57654453,116.67,116.56,39.58021031]
[1744220633070,4.3851,116.74,116.62,39.58021031]
[1744220633273,1.57575314,116.73,116.64,39.58021031]
[1744220633474,39.58021031,116.72,116.56,555.8]
[1744220633673,39.58021031,116.7,116.58,39.58021031]
[1744220634074,39.58021031,116.7,116.62,8.5801]
[1744220634277,39.58021031,116.71,116.6,39.58021031]
[1744220634464,0.05436657,116.65,116.63,0.06035354]
[1744220634974,595.40021031,116.69,116.58,39.58021031]
[1744220635274,0.05821824,116.65,116.63,0.06577707]
[1744220635478,39.63842855,116.65,116.54,39.58021031]
[1744220635673,4.4844,116.66,116.61,8.5812]
[1744220635880,595.40021031,116.69,116.58,39.58021031]
[1744220636267,595.40021031,116.69,116.56,39.58021031]
[1744220636472,39.58021031,116.66,116.56,39.58021031]
[1744220636673,39.64086968,116.64,116.52,39.58021031]
[1744220636866,39.58021031,116.62,116.5,39.58021031]
[1744220637771,39.58021031,116.62,116.54,8.586]
[1744220637971,0.06571804,116.57,116.48,39.58021031]
[1744220638177,39.58021031,116.56,116.46,75.82409588]
[1744220638568,0.05490326,116.52,116.46,75.82409588]
[1744220639077,1.57785833,116.6,116.5,39.58021031]
[1744220639280,39.58021031,116.6,116.46,39.58021031]
[1744220639467,560.1415,116.61,116.51,39.58021031]
[1744220639677,9.0778,116.63,116.55,39.58021031]
[1744220640168,4.2415,116.66,116.57,39.58021031]
[1744220640474,4.2415,116.66,116.53,39.58021031]
[1744220640475,555.9,116.68,116.6,39.58021031]
[1744220640782,0.06319608,116.63,116.6,0.05445175]
[1744220640974,0.06319608,116.63,116.46,404.58021031]
[1744220640975,39.64340639,116.63,116.49,0.1025]
[1744220641279,4.4404,116.62,116.52,39.58021031]
[1744220641465,4.4404,116.62,116.54,8.5864]
[1744220641666,4.4404,116.62,116.44,556.0]
[1744220641667,39.58021031,116.59,116.44,556.0]
[1744220641876,39.58021031,116.54,116.44,8.5932]
[1744220642073,39.58021031,116.54,116.41,39.74341031]
[1744220642267,0.05550036,116.5,116.38,75.82409588]
[1744220642464,39.63571067,116.5,116.38,115.40430619]
[1744220642670,39.58021031,116.5,116.38,115.40430619]
[1744220642882,4.4404,116.53,116.44,39.58021031]
[1744220643079,5.146e-05,116.45,116.44,8.5939]
[1744220643271,599.76201031,116.58,116.44,62.0]
[1744220643470,599.76201031,116.58,116.52,8.5879]
[1744220643471,1.57798533,116.57,116.52,8.5879]
[1744220643672,560.1818,116.58,116.51,39.58021031]
[1744220643977,4.4404,116.62,116.55,39.58021031]
[1744220644487,0.05716104,116.6,116.57,0.05810575]
[1744220645295,39.58021031,116.58,116.45,39.58021031]
[1744220645483,4.2833,116.59,116.49,39.58021031]
[1744220645787,4.4404,116.62,116.53,39.58021031]
[1744220645986,4.2833,116.65,116.53,39.58021031]
[1744220646179,43.81101031,116.69,116.57,39.58021031]
[1744220646379,0.05577878,116.6,116.53,39.58021031]
[1744220646586,0.05577878,116.6,116.55,8.5851]
[1744220646878,39.58021031,116.61,116.52,0.1632]
[1744220647185,0.0655617,116.59,116.55,39.58021031]
[1744220647390,6.17e-05,116.59,116.53,39.58021031]
[1744220647682,8.5141,116.69,116.52,39.74341031]
[1744220647884,39.58021031,116.63,116.52,39.74341031]
[1744220648070,39.58021031,116.59,116.44,860.2]
[1744220648270,39.58021031,116.63,116.52,39.58021031]
[1744220648678,48.09431031,116.69,116.58,39.58021031]
[1744220648876,556.2,116.75,116.62,39.58021031]
[1744220649077,556.2,116.75,116.69,8.5752]
[1744220649078,41.29341915,116.74,116.69,8.5752]
[1744220649276,0.05450341,116.7,116.67,0.05797319]
[1744220649672,39.58021031,116.7,116.6,39.58021031]
[1744220649872,0.06354045,116.7,116.67,0.05506899]
[1744220650279,41.29356591,116.73,116.61,101.58021031]
[1744220650482,1.7133556,116.73,116.61,62.0]
[1744220650683,0.06349361,116.7,116.67,0.0655]
[1744220650889,39.58021031,116.69,116.67,0.0655]
[1744220651083,39.58021031,116.69,116.61,62.0]
[1744220651281,48.22370392,116.7,116.55,39.58021031]
[1744220651282,39.58021031,116.66,116.55,39.58021031]
[1744220651482,39.58021031,116.64,116.56,1.71585449]
[1744220651690,39.58021031,116.66,116.56,1.71585449]
[1744220651993,39.58021031,116.62,116.56,1.71585449]
[1744220652287,556.22,116.67,116.56,1.71585449]
[1744220652288,39.58021031,116.6,116.56,1.71585449]
[1744220652483,39.63931565,116.6,116.58,0.0589038]
[1744220652691,0.05910534,116.6,116.58,0.0589038]
[1744220653293,0.05910534,116.6,116.59,8.5828]
[1744220654090,0.05910534,116.6,116.58,0.0589038]
[1744220654390,39.63931565,116.6,116.58,0.0589038]
[1744220654588,0.05910534,116.6,116.58,0.0589038]
[1744220655089,39.58021031,116.59,116.49,62.0]
[1744220655293,39.58021031,116.56,116.43,39.58021031]
[1744220655493,39.58021031,116.53,116.41,39.79851031]
[1744220655693,39.58021031,116.51,116.41,39.79851031]
[1744220655884,39.58021031,116.47,116.37,39.58021031]
[1744220656087,39.58021031,116.47,116.35,39.58021031]
[1744220656290,0.05872621,116.43,116.35,39.58021031]
[1744220656489,0.05872621,116.43,116.36,78.88209752]
[1744220656686,39.58021031,116.45,116.36,78.88209752]
[1744220657190,0.05440332,116.41,116.36,78.88209752]
[1744220657685,0.05440332,116.41,116.36,87.48189752]
[1744220657891,39.63461363,116.41,116.36,78.88209752]
[1744220658091,0.05440332,116.41,116.36,78.88209752]
[1744220658291,0.05440332,116.41,116.37,8.5988]
[1744220658594,0.05440332,116.41,116.36,78.88209752]
[1744220658798,0.05440332,116.41,116.4,8.5969]
[1744220659190,0.05440332,116.41,116.3,304.2183]
[1744220659391,0.05440332,116.41,116.3,0.2183]
[1744220659596,39.58021031,116.43,116.33,39.58021031]
[1744220659891,0.05606426,116.37,116.36,8.5995]
[1744220660091,6.426e-05,116.37,116.36,8.5995]
[1744220660291,39.58021031,116.42,116.31,39.58021031]
[1744220660692,39.58021031,116.38,116.23,860.16]
[1744220660992,556.44,116.41,116.31,39.58021031]
[1744220661194,4.2616,116.44,116.35,39.58021031]
[1744220661699,0.05540356,116.41,116.36,62.0]
[1744220662000,0.05540356,116.41,116.37,39.58021031]
[1744220662298,4.54,116.48,116.42,8.5953]
[1744220662596,44.12021031,116.48,116.36,39.58021031]
[1744220662794,39.58021031,116.44,116.33,39.58021031]
[1744220663000,4.54,116.48,116.33,39.58021031]
[1744220663001,39.58021031,116.46,116.33,39.58021031]
[1744220663296,1.57943046,116.45,116.35,39.58021031]
[1744220663494,4.54,116.48,116.39,39.58021031]
[1744220663689,44.19561031,116.51,116.39,39.58021031]
[1744220663883,48.46131031,116.49,116.44,8.5934]
[1744220664291,8.8811,116.49,116.37,39.58021031]
[1744220664488,8.8811,116.49,116.39,39.58021031]
[1744220664694,8.8811,116.49,116.41,39.58021031]
[1744220664997,0.06156422,116.44,116.43,8.5946]
[1744220665192,4.6154,116.51,116.43,110.16021031]
[1744220665388,4.6154,116.51,116.43,101.58021031]
[1744220665794,556.68,116.52,116.43,62.0]
[1744220666499,4.5495,116.56,116.46,0.05588184]
[1744220666689,4.5495,116.56,116.47,39.58021031]
[1744220666894,4.5495,116.56,116.49,39.58021031]
[1744220667095,39.58021031,116.53,116.35,1265.32021031]
[1744220667396,39.58021031,116.51,116.41,39.58021031]
[1744220667692,39.58021031,116.51,116.45,0.05749378]
[1744220667900,39.63863152,116.47,116.4,1.71821305]
[1744220668408,556.74,116.52,116.4,1.71821305]
[1744220668699,39.58021031,116.45,116.4,1.71821305]
[1744220669200,0.0551273,116.44,116.41,0.05789511]
[1744220669793,556.7151273,116.44,116.41,0.05789511]
[1744220670300,556.7151273,116.44,116.4,1.71821305]
[1744220670999,39.58021031,116.41,116.23,191.72447438]
[1744220671204,39.58021031,116.41,116.3,39.58021031]
[1744220671501,0.06015046,116.37,116.33,0.05812595]
[1744220671796,0.06015046,116.37,116.29,8.6044]
[1744220671797,39.64036077,116.37,116.29,8.6044]
[1744220672003,39.58021031,116.34,116.24,118.32314628]
[1744220672204,39.58021031,116.32,116.24,118.32314628]
[1744220672500,561.202,116.36,116.28,0.05702049]
[1744220672501,0.05548879,116.31,116.28,0.05702049]
[1744220672795,0.05548879,116.31,116.28,39.6372308]
[1744220672995,561.202,116.36,116.19,17.4984]
[1744220673197,0.05564505,116.31,116.28,0.0592909]
[1744220673505,561.202,116.36,116.22,39.58021031]
[1744220673506,561.202,116.36,116.29,39.58021031]
[1744220673688,556.98,116.43,116.28,39.58021031]
[1744220673895,556.98,116.43,116.36,39.58021031]
[1744220674194,596.56021031,116.48,116.37,62.0]
[1744220674392,1.57941417,116.47,116.38,39.58021031]
[1744220674587,1.57941144,116.47,116.39,39.58021031]
[1744220674793,8.6574,116.51,116.34,343.58021031]
[1744220674984,8.6574,116.51,116.43,39.58021031]
[1744220675194,39.58021031,116.57,116.42,0.06106406]
[1744220675496,1.57831052,116.56,116.45,39.58021031]
[1744220675698,39.58021031,116.53,116.41,39.58021031]
[1744220675901,39.58021031,116.51,116.39,39.58021031]
[1744220676500,0.05838579,116.46,116.44,0.05574415]
[1744220676889,39.58021031,116.49,116.39,39.58021031]
[1744220677094,0.06022074,116.46,116.44,0.06166154]
[1744220677494,4.2545,116.55,116.38,39.58021031]
[1744220677495,39.58021031,116.5,116.38,39.58021031]
[1744220677693,39.63675217,116.46,116.44,0.06123522]
[1744220677898,39.63675217,116.46,116.36,39.58021031]
[1744220678095,39.58021031,116.46,116.34,39.58021031]
[1744220678405,39.58021031,116.43,116.33,8.6016]
[1744220678789,39.58021031,116.41,116.31,39.58021031]
[1744220679001,39.58021031,116.41,116.16,74.03741031]
[1744220679002,39.58021031,116.39,116.23,1.8792]
[1744220679193,4.5044,116.38,116.31,39.58021031]
[1744220679393,39.58021031,116.42,116.33,8.6015]
[1744220679603,39.58021031,116.39,116.24,1.72057811]
[1744220679908,39.58021031,116.35,116.24,1.72057811]
[1744220680203,39.58021031,116.37,116.25,39.58021031]
[1744220680396,39.58021031,116.35,116.28,0.0658022]
[1744220680606,0.06095086,116.31,116.29,1.71983833]
[1744220680808,4.5196,116.36,116.29,1.71983833]
[1744220681004,0.06076724,116.31,116.29,41.35602719]
[1744220681315,4.5196,116.36,116.29,41.30004864]
[1744220681504,596.56021031,116.43,116.33,8.6017]
[1744220681707,596.56021031,116.43,116.34,1.71909919]
[1744220682013,596.56021031,116.43,116.34,41.2993095]
[1744220682014,556.98,116.43,116.34,41.2993095]
[1744220682202,0.05752962,116.39,116.36,0.05898747]
[1744220682504,0.05752962,116.39,116.37,1.71865601]
[1744220682707,39.63773993,116.39,116.28,39.58021031]
[1744220682901,0.05752962,116.39,116.3,39.58021031]
[1744220683108,4.5044,116.41,116.34,39.58021031]
[1744220683295,4.5044,116.41,116.33,39.58021031]
[1744220683707,4.5044,116.41,116.35,39.58021031]
[1744220683908,8.771,116.45,116.39,39.58021031]
[1744220684205,4.5196,116.45,116.4,62.0]
[1744220684508,4.5196,116.45,116.36,39.58021031]
[1744220684712,4.5196,116.45,116.3,0.2761]
[1744220684902,39.58021031,116.42,116.31,39.58021031]
[1744220685204,0.05823885,116.39,116.36,0.06464536]
[1744220685408,39.58021031,116.38,116.18,0.02440455]
[1744220685607,39.58021031,116.34,116.22,39.58021031]
[1744220686311,39.58021031,116.32,116.2,39.58021031]
[1744220686509,39.58021031,116.3,116.18,39.60461486]
[1744220686700,0.06588805,116.29,116.18,39.60461486]
[1744220686899,39.58021031,116.3,116.18,39.60461486]
[1744220687198,39.58021031,116.3,116.18,0.02440455]
[1744220687404,557.06,116.34,116.26,39.58021031]
[1744220687610,557.06,116.34,116.27,8.6064]
[1744220687795,0.06355437,116.31,116.26,39.58021031]
[1744220688022,0.06355437,116.31,116.29,8.6045]
[1744220688205,0.06355437,116.31,116.23,0.274]
[1744220688408,557.06,116.34,116.27,39.58021031]
[1744220688899,9.1605,116.36,116.27,39.58021031]
[1744220689201,4.5664,116.36,116.29,39.58021031]
[1744220689397,4.5252,116.37,116.31,39.58021031]
[1744220689608,9.1322,116.44,116.35,8.6005]
[1744220689801,3.29751978,116.43,116.37,39.58021031]
[1744220690006,0.05839188,116.41,116.38,0.05577656]
[1744220690411,0.05839188,116.41,116.3,0.274]
[1744220690412,39.58021031,116.41,116.3,39.58021031]
[1744220690703,1.71777033,116.43,116.38,39.58021031]
[1744220690904,1.71777033,116.43,116.36,39.58021031]
[1744220691115,4.5189,116.51,116.4,39.58021031]
[1744220691304,39.58021031,116.5,116.4,39.58021031]
[1744220691504,39.58021031,116.48,116.35,304.2821]
[1744220691709,39.58021031,116.42,116.31,39.58021031]
[1744220692009,39.58021031,116.42,116.27,0.2821]
[1744220692216,0.06036335,116.38,116.33,39.58021031]
[1744220692515,39.58021031,116.42,116.31,39.58021031]
[1744220692706,0.06255036,116.37,116.33,8.6015]
[1744220693011,0.06255036,116.37,116.31,39.58021031]
[1744220693215,0.06255036,116.37,116.31,48.18361031]
[1744220693404,0.06255036,116.37,116.31,39.58021031]
[1744220693606,0.06255036,116.37,116.22,304.0]
[1744220693914,4.5189,116.41,116.3,39.58021031]
[1744220694211,0.05713213,116.31,116.3,39.58021031]
[1744220694511,4.5189,116.41,116.3,39.58021031]
[1744220694714,39.58021031,116.4,116.23,63.8871]
[1744220694911,39.58021031,116.4,116.31,8.603]
[1744220695117,4.5189,116.41,116.29,39.58021031]
[1744220695616,0.06023956,116.36,116.34,0.05921788]
[1744220695913,4.5189,116.41,116.33,39.58021031]
[1744220696213,0.06192683,116.36,116.34,0.05839201]
[1744220696611,4.5189,116.41,116.29,39.58021031]
[1744220696612,596.76021031,116.4,116.29,39.58021031]
[1744220696819,0.05896021,116.36,116.34,0.06298645]
[1744220697114,39.58021031,116.38,116.27,39.58021031]
[1744220697305,0.06481392,116.36,116.34,0.06315927]
[1744220697501,4.5189,116.41,116.36,8.5992]
[1744220697710,4.5189,116.41,116.35,39.58021031]
[1744220697914,4.5189,116.41,116.33,39.58021031]
[1744220698618,0.05962027,116.38,116.36,39.63970311]
[1744220698818,557.18,116.47,116.36,39.63970311]
[1744220699024,9.1743,116.45,116.36,39.63970311]
[1744220699220,9.1743,116.45,116.38,39.58021031]
[1744220700017,0.06160457,116.43,116.4,0.05869526]
[1744220700219,39.58021031,116.53,116.42,39.58021031]
[1744220700417,610.27261031,116.57,116.46,39.58021031]
[1744220700618,650.81536114,116.64,116.54,39.58021031]
[1744220700820,1.57728484,116.63,116.54,39.58021031]
[1744220701017,699.40287145,116.64,116.54,39.58021031]
[1744220701322,1.57705257,116.63,116.56,39.58021031]
[1744220701525,0.06574501,116.6,116.58,0.06335333]
[1744220701907,48.22595532,116.6,116.58,0.06335333]
[1744220702217,0.06574501,116.6,116.53,39.58021031]
[1744220702420,0.06574501,116.6,116.57,39.58021031]
[1744220702721,9.0073,116.64,116.59,8.5828]
[1744220702913,9.0073,116.64,116.57,39.58021031]
[1744220703316,93.67536114,116.67,116.59,39.58021031]
[1744220703615,0.05461345,116.63,116.6,39.58021031]
[1744220703823,93.67536114,116.67,116.58,62.0]
[1744220704032,0.06250865,116.64,116.62,0.06177612]
[1744220704318,0.06250865,116.64,116.49,1.8914]
[1744220704519,0.06250865,116.64,116.56,39.58021031]
[1744220704716,4.5412,116.66,116.52,39.58021031]
[1744220704924,39.58021031,116.74,116.64,39.58021031]
[1744220705218,13.6284,116.75,116.64,39.58021031]
[1744220705421,13.6284,116.75,116.68,39.58021031]
[1744220705623,0.06043649,116.7,116.68,0.06248335]
[1744220705813,13.6284,116.75,116.68,0.06248335]
[1744220706122,0.06045103,116.7,116.68,0.06248335]
[1744220706319,39.58021031,116.74,116.68,0.06248335]
[1744220706520,13.6284,116.75,116.68,0.06248335]
[1744220706816,4.5412,116.75,116.68,39.64269366]
[1744220707019,39.58021031,116.78,116.68,0.06248335]
[1744220707208,5.86366564,116.77,116.68,62.06248335]
[1744220707409,4.2886,116.77,116.68,101.58021031]
[1744220707608,4.2886,116.77,116.7,39.58021031]
[1744220707820,4.2738,116.79,116.7,39.58021031]
[1744220708022,1.57500205,116.78,116.72,39.58021031]
[1744220708227,0.06282013,116.75,116.72,39.63753912]
[1744220708522,4.507,116.81,116.74,39.58021031]
[1744220708823,4.507,116.81,116.72,39.63753912]
[1744220709025,4.507,116.81,116.72,39.58021031]
[1744220709318,39.58021031,116.77,116.67,39.58021031]
[1744220709520,39.58021031,116.79,116.67,39.58021031]
[1744220709717,39.58021031,116.75,116.64,39.58021031]
[1744220709919,39.58021031,116.71,116.52,708.58021031]
[1744220710117,39.58021031,116.71,116.6,39.58021031]
[1744220710427,39.58021031,116.69,116.6,0.05689855]
[1744220710721,556.14,116.73,116.59,39.58021031]
[1744220710921,39.58021031,116.66,116.55,39.58021031]
[1744220711221,39.58021031,116.64,116.53,0.2789]
[1744220711420,39.58021031,116.62,116.5,39.58021031]
[1744220711620,39.58021031,116.6,116.52,8.5879]
[1744220711923,39.58021031,116.6,116.47,0.2789]
[1744220711924,39.6418879,116.6,116.57,0.06290737]
[1744220712221,39.58021031,116.62,116.5,39.58021031]
[1744220712422,0.06512967,116.6,116.52,39.58021031]
[1744220712627,0.06512967,116.6,116.54,39.58021031]
[1744220712823,4.5746,116.63,116.56,39.58021031]